[Event "Early-Titled-Tuesday-Blitz-January-16-2024"]
[Site "Chess.com"]
[Date "2024.01.16"]
[Round "1"]
[White "djano"]
[Black "szefru"]
[Result "1-0"]
[WhiteElo "2629"]
[BlackElo "2286"]
[TimeControl "180+1"]
[EndTime "8:04:02 PST"]
[Termination "djano won by resignation"]

1. e4 {[%clk 0:03:00.6]} 1... e5 {[%clk 0:02:47.5]} 2. Nf3 {[%clk 0:02:59.3]}
2... Nc6 {[%clk 0:02:41]} 3. d4 {[%clk 0:02:59.3]} 3... exd4 {[%clk 0:02:39.4]}
4. Nxd4 {[%clk 0:03:00.2]} 4... Bc5 {[%clk 0:02:36.5]} 5. Nb3 {[%clk 0:03:00.1]}
5... Bb6 {[%clk 0:02:36.2]} 6. Nc3 {[%clk 0:03:00.2]} 6... Nf6 {[%clk
0:02:31.1]} 7. Bg5 {[%clk 0:02:58.7]} 7... d6 {[%clk 0:02:30.7]} 8. Qe2 {[%clk
0:02:57]} 8... h6 {[%clk 0:02:27.8]} 9. Bh4 {[%clk 0:02:52.7]} 9... Nd4 {[%clk
0:02:13.8]} 10. Qd3 {[%clk 0:02:51.7]} 10... Nxb3 {[%clk 0:02:10]} 11. axb3
{[%clk 0:02:52.3]} 11... g5 {[%clk 0:02:09.5]} 12. Bg3 {[%clk 0:02:50.9]} 12...
Be6 {[%clk 0:02:00.3]} 13. O-O-O {[%clk 0:02:50]} 13... Qd7 {[%clk 0:01:59.2]}
14. e5 {[%clk 0:02:41.8]} 14... Bf5 {[%clk 0:01:52.5]} 15. Qe2 {[%clk
0:02:31.1]} 15... O-O-O {[%clk 0:01:27.5]} 16. exf6 {[%clk 0:02:28]} 16... Rhe8
{[%clk 0:01:27.3]} 17. Qd2 {[%clk 0:02:20.8]} 17... a6 {[%clk 0:01:04.5]} 18.
Nd5 {[%clk 0:02:18.7]} 18... Qc6 {[%clk 0:00:56.4]} 19. Ne7+ {[%clk 0:02:10.8]}
1-0

[Event "Early-Titled-Tuesday-Blitz-January-16-2024"]
[Site "Chess.com"]
[Date "2024.01.16"]
[Round "1"]
[White "Aariow"]
[Black "JSPrepz"]
[Result "0-1"]
[WhiteElo "2467"]
[BlackElo "2864"]
[TimeControl "180+1"]
[EndTime "8:04:03 PST"]
[Termination "JSPrepz won by resignation"]

1. Nf3 {[%clk 0:03:00.9]} 1... g6 {[%clk 0:02:58.2]} 2. d4 {[%clk 0:02:56.7]}
2... Bg7 {[%clk 0:02:55.4]} 3. c3 {[%clk 0:02:55.7]} 3... c6 {[%clk 0:02:54.8]}
4. Bf4 {[%clk 0:02:49.9]} 4... d6 {[%clk 0:02:55.1]} 5. h3 {[%clk 0:02:49.4]}
5... Nd7 {[%clk 0:02:53.6]} 6. e3 {[%clk 0:02:49.4]} 6... Ngf6 {[%clk
0:02:53.4]} 7. Be2 {[%clk 0:02:48.7]} 7... O-O {[%clk 0:02:54]} 8. O-O {[%clk
0:02:48.9]} 8... Re8 {[%clk 0:02:52.9]} 9. Bh2 {[%clk 0:02:48.1]} 9... e5 {[%clk
0:02:51.6]} 10. dxe5 {[%clk 0:02:42.1]} 10... dxe5 {[%clk 0:02:51.7]} 11. Nxe5
{[%clk 0:02:41.4]} 11... Ne4 {[%clk 0:02:28.2]} 12. Nxd7 {[%clk 0:02:36.8]}
12... Bxd7 {[%clk 0:02:29.1]} 13. Nd2 {[%clk 0:02:34.3]} 13... Nc5 {[%clk
0:02:29.4]} 14. Nb3 {[%clk 0:02:31.8]} 14... Na4 {[%clk 0:02:29.7]} 15. Rb1
{[%clk 0:02:26.6]} 15... Bf5 {[%clk 0:02:29]} 16. Qxd8 {[%clk 0:01:52]} 16...
Raxd8 {[%clk 0:02:25.6]} 17. Rbc1 {[%clk 0:01:48.8]} 17... Nxb2 {[%clk
0:02:25.6]} 18. Na5 {[%clk 0:01:48.2]} 18... Rd2 {[%clk 0:02:17.5]} 19. Rfe1
{[%clk 0:01:39.1]} 19... Bd3 {[%clk 0:01:54]} 20. Bxd3 {[%clk 0:01:30.4]} 20...
Nxd3 {[%clk 0:01:44.6]} 21. Red1 {[%clk 0:01:30.5]} 21... Nxc1 {[%clk
0:01:34.5]} 22. Rxd2 {[%clk 0:01:29.8]} 22... Bxc3 {[%clk 0:01:34.6]} 0-1

[Event "Early-Titled-Tuesday-Blitz-January-16-2024"]
[Site "Chess.com"]
[Date "2024.01.16"]
[Round "1"]
[White "Yurovskykh_Oleksandr"]
[Black "vanyakuba"]
[Result "0-1"]
[WhiteElo "2616"]
[BlackElo "2307"]
[TimeControl "180+1"]
[EndTime "8:04:19 PST"]
[Termination "vanyakuba won by resignation"]

1. d4 {[%clk 0:02:53.2]} 1... d5 {[%clk 0:02:58.8]} 2. Bf4 {[%clk 0:02:49.1]}
2... c5 {[%clk 0:02:56.3]} 3. e3 {[%clk 0:02:44.6]} 3... Nc6 {[%clk 0:02:55.4]}
4. c3 {[%clk 0:02:44.2]} 4... Nf6 {[%clk 0:02:54.5]} 5. Nd2 {[%clk 0:02:43.1]}
5... g6 {[%clk 0:02:54.1]} 6. Ngf3 {[%clk 0:02:41.8]} 6... Bg7 {[%clk 0:02:54]}
7. Be2 {[%clk 0:02:34.9]} 7... O-O {[%clk 0:02:47.2]} 8. O-O {[%clk 0:02:35]}
8... Nd7 {[%clk 0:02:46.9]} 9. Qb3 {[%clk 0:02:33]} 9... c4 {[%clk 0:02:15.8]}
10. Qc2 {[%clk 0:02:23.7]} 10... e5 {[%clk 0:02:14.9]} 11. dxe5 {[%clk
0:02:21.7]} 11... Ndxe5 {[%clk 0:02:15.8]} 12. Nxe5 {[%clk 0:02:22]} 12... Nxe5
{[%clk 0:02:13.3]} 13. Bxe5 {[%clk 0:02:09.7]} 13... Bxe5 {[%clk 0:02:11.7]} 14.
Nf3 {[%clk 0:02:09.8]} 14... Bf6 {[%clk 0:01:50.8]} 15. Rad1 {[%clk 0:02:09.4]}
15... Qa5 {[%clk 0:01:50.6]} 16. a3 {[%clk 0:02:08.7]} 16... Bf5 {[%clk
0:01:46.8]} 17. Qc1 {[%clk 0:02:08]} 17... Rad8 {[%clk 0:01:39.3]} 18. Rd2
{[%clk 0:02:07.1]} 18... Rd7 {[%clk 0:01:29.2]} 19. Nd4 {[%clk 0:02:04.4]} 19...
Be4 {[%clk 0:00:57.4]} 20. Bf3 {[%clk 0:01:44.2]} 0-1

[Event "Early-Titled-Tuesday-Blitz-January-16-2024"]
[Site "Chess.com"]
[Date "2024.01.16"]
[Round "1"]
[White "biostatistician"]
[Black "Akylbek2021"]
[Result "1-0"]
[WhiteElo "2602"]
[BlackElo "2230"]
[TimeControl "180+1"]
[EndTime "8:04:23 PST"]
[Termination "biostatistician won by resignation"]

1. d4 {[%clk 0:02:59.1]} 1... Nf6 {[%clk 0:02:59.9]} 2. Nf3 {[%clk 0:03:00]}
2... b6 {[%clk 0:02:59.8]} 3. c4 {[%clk 0:03:00.1]} 3... Bb7 {[%clk 0:03:00.4]}
4. Nc3 {[%clk 0:03:00.6]} 4... d6 {[%clk 0:03:01.2]} 5. Bg5 {[%clk 0:02:56.5]}
5... Nbd7 {[%clk 0:03:01.2]} 6. Qc2 {[%clk 0:02:54.3]} 6... g6 {[%clk
0:03:00.8]} 7. e4 {[%clk 0:02:54.2]} 7... Bg7 {[%clk 0:03:00.7]} 8. Be2 {[%clk
0:02:50.9]} 8... O-O {[%clk 0:02:57.1]} 9. O-O {[%clk 0:02:51]} 9... e5 {[%clk
0:02:55.9]} 10. d5 {[%clk 0:02:50.5]} 10... a6 {[%clk 0:02:54.6]} 11. Nd2 {[%clk
0:02:50.2]} 11... h6 {[%clk 0:02:53.3]} 12. Bh4 {[%clk 0:02:50.2]} 12... g5
{[%clk 0:02:54.2]} 13. Bg3 {[%clk 0:02:50.3]} 13... Qe7 {[%clk 0:02:52.7]} 14.
Rfe1 {[%clk 0:02:49.5]} 14... Nc5 {[%clk 0:02:52.9]} 15. Nf1 {[%clk 0:02:48.9]}
15... a5 {[%clk 0:02:52.5]} 16. Ne3 {[%clk 0:02:49]} 16... Bc8 {[%clk
0:02:50.4]} 17. b3 {[%clk 0:02:42.1]} 17... Bd7 {[%clk 0:02:50.1]} 18. a3 {[%clk
0:02:41.9]} 18... Ra7 {[%clk 0:02:35.9]} 19. b4 {[%clk 0:02:41.1]} 19... axb4
{[%clk 0:02:36.8]} 20. axb4 {[%clk 0:02:42]} 20... Rxa1 {[%clk 0:02:36.4]} 21.
Rxa1 {[%clk 0:02:42.9]} 21... Nb7 {[%clk 0:02:37.2]} 22. Ra7 {[%clk 0:02:40.8]}
22... Rb8 {[%clk 0:02:37.7]} 23. Qa2 {[%clk 0:02:33.9]} 23... Qd8 {[%clk
0:02:37.5]} 24. h3 {[%clk 0:02:10]} 24... Ne8 {[%clk 0:02:33.8]} 25. Bg4 {[%clk
0:02:09.3]} 25... Bxg4 {[%clk 0:02:31.2]} 26. hxg4 {[%clk 0:02:10.2]} 26... Nf6
{[%clk 0:02:32.1]} 27. f3 {[%clk 0:02:09.8]} 27... h5 {[%clk 0:02:31.2]} 28. Qa6
{[%clk 0:02:04.1]} 28... Qc8 {[%clk 0:02:29.5]} 29. gxh5 {[%clk 0:01:59.2]}
29... Nxh5 {[%clk 0:02:30.4]} 30. Bf2 {[%clk 0:01:58.4]} 30... Nf4 {[%clk
0:02:25.9]} 31. Nf5 {[%clk 0:01:57.2]} 31... Bf8 {[%clk 0:02:26.2]} 32. Be3
{[%clk 0:01:50]} 32... Nd8 {[%clk 0:02:25]} 33. Qxc8 {[%clk 0:01:45.5]} 33...
Rxc8 {[%clk 0:02:24.7]} 34. Nb5 {[%clk 0:01:45]} 34... c6 {[%clk 0:02:24]} 35.
Nbxd6 {[%clk 0:01:42.5]} 35... Rb8 {[%clk 0:02:17.6]} 36. g3 {[%clk 0:01:34]}
36... Nd3 {[%clk 0:02:16.6]} 37. Bxg5 {[%clk 0:01:33.1]} 37... Nxb4 {[%clk
0:02:15.5]} 38. Bxd8 {[%clk 0:01:30.5]} 38... Rxd8 {[%clk 0:02:13.6]} 39. Nxf7
{[%clk 0:01:30.9]} 39... Bc5+ {[%clk 0:02:13.9]} 40. Kg2 {[%clk 0:01:30]} 40...
Rb8 {[%clk 0:02:14.8]} 41. Nxe5 {[%clk 0:01:22.9]} 41... cxd5 {[%clk 0:02:14.4]}
42. cxd5 {[%clk 0:01:23.8]} 1-0

[Event "Early-Titled-Tuesday-Blitz-January-16-2024"]
[Site "Chess.com"]
[Date "2024.01.16"]
[Round "1"]
[White "knightinshiningarmour16"]
[Black "YoreDea"]
[Result "0-1"]
[WhiteElo "2192"]
[BlackElo "2586"]
[TimeControl "180+1"]
[EndTime "8:04:32 PST"]
[Termination "YoreDea won by checkmate"]

1. e4 {[%clk 0:03:00.9]} 1... e6 {[%clk 0:02:59.5]} 2. d4 {[%clk 0:02:53.3]}
2... d5 {[%clk 0:02:59.5]} 3. exd5 {[%clk 0:02:52.4]} 3... exd5 {[%clk
0:02:59.6]} 4. Nf3 {[%clk 0:02:51.8]} 4... Nc6 {[%clk 0:02:59.9]} 5. c3 {[%clk
0:02:50.6]} 5... Bd6 {[%clk 0:02:59.4]} 6. Bd3 {[%clk 0:02:49.8]} 6... Bg4
{[%clk 0:02:57.6]} 7. O-O {[%clk 0:02:41]} 7... Qf6 {[%clk 0:02:57.7]} 8. Be2
{[%clk 0:02:39.7]} 8... Nge7 {[%clk 0:02:57.1]} 9. h3 {[%clk 0:02:38.8]} 9... h5
{[%clk 0:02:56.7]} 10. Bg5 {[%clk 0:02:32.2]} 10... Qg6 {[%clk 0:02:56.3]} 11.
Qd2 {[%clk 0:01:02.2]} 11... f6 {[%clk 0:02:54.6]} 12. Be3 {[%clk 0:00:57.8]}
12... Bxh3 {[%clk 0:02:52.3]} 13. Nh4 {[%clk 0:00:56.1]} 13... Qe4 {[%clk
0:02:48.2]} 14. g3 {[%clk 0:00:36.4]} 14... Bxf1 {[%clk 0:02:36.9]} 15. Bxf1
{[%clk 0:00:36.3]} 15... g5 {[%clk 0:02:36.9]} 16. Bd3 {[%clk 0:00:35.1]} 16...
Qe6 {[%clk 0:02:34]} 17. Ng6 {[%clk 0:00:28.5]} 17... Nxg6 {[%clk 0:02:25.1]}
18. Bxg6+ {[%clk 0:00:29.4]} 18... Kd7 {[%clk 0:02:26]} 19. Qd3 {[%clk
0:00:25.4]} 19... Ne7 {[%clk 0:02:26.3]} 20. Qc2 {[%clk 0:00:22]} 20... h4
{[%clk 0:02:25.4]} 21. gxh4 {[%clk 0:00:17.9]} 21... Rxh4 {[%clk 0:02:24.3]} 22.
Nd2 {[%clk 0:00:16.8]} 22... Qg4+ {[%clk 0:02:22.8]} 23. Kf1 {[%clk 0:00:16.6]}
23... Rh1# {[%clk 0:02:23.7]} 0-1

[Event "Early-Titled-Tuesday-Blitz-January-16-2024"]
[Site "Chess.com"]
[Date "2024.01.16"]
[Round "1"]
[White "GMRAVEN_ON_YOUTUBE"]
[Black "Alex_Terzi"]
[Result "1-0"]
[WhiteElo "2821"]
[BlackElo "2444"]
[TimeControl "180+1"]
[EndTime "8:04:34 PST"]
[Termination "GMRAVEN_ON_YOUTUBE won by checkmate"]

1. f4 {[%clk 0:03:00.9]} 1... d5 {[%clk 0:02:54.7]} 2. Nf3 {[%clk 0:03:01]} 2...
Nf6 {[%clk 0:02:32.6]} 3. e3 {[%clk 0:03:01.6]} 3... e6 {[%clk 0:02:29.3]} 4. b3
{[%clk 0:03:01]} 4... Be7 {[%clk 0:02:23.1]} 5. Bb2 {[%clk 0:03:01.6]} 5... O-O
{[%clk 0:02:16.4]} 6. Rg1 {[%clk 0:03:01.7]} 6... Nc6 {[%clk 0:02:13.8]} 7. g4
{[%clk 0:02:59.9]} 7... Ne4 {[%clk 0:01:20.9]} 8. g5 {[%clk 0:02:59.6]} 8... f5
{[%clk 0:00:58.7]} 9. d3 {[%clk 0:02:54.9]} 9... Nc5 {[%clk 0:00:47.2]} 10. Nbd2
{[%clk 0:02:53]} 10... Bd6 {[%clk 0:00:30.7]} 11. Qe2 {[%clk 0:02:47.9]} 11...
a6 {[%clk 0:00:28.4]} 12. O-O-O {[%clk 0:02:46.1]} 12... a5 {[%clk 0:00:14.6]}
13. a3 {[%clk 0:02:44.3]} 13... a4 {[%clk 0:00:14.4]} 14. b4 {[%clk 0:02:44.7]}
14... Na6 {[%clk 0:00:12.7]} 15. b5 {[%clk 0:02:44.1]} 15... Nc5 {[%clk
0:00:10.6]} 16. bxc6 {[%clk 0:02:44.2]} 16... bxc6 {[%clk 0:00:10.4]} 17. Ne5
{[%clk 0:02:37.8]} 17... Bd7 {[%clk 0:00:06.1]} 18. g6 {[%clk 0:02:31.9]} 18...
h6 {[%clk 0:00:03.9]} 19. Nf7 {[%clk 0:02:32.2]} 19... Qc8 {[%clk 0:00:03.1]}
20. Qh5 {[%clk 0:02:31.9]} 20... Rb8 {[%clk 0:00:02.5]} 21. Qxh6 {[%clk
0:02:29.4]} 21... gxh6 {[%clk 0:00:01.3]} 22. Nxh6# {[%clk 0:02:30]} 1-0

[Event "Early-Titled-Tuesday-Blitz-January-16-2024"]
[Site "Chess.com"]
[Date "2024.01.16"]
[Round "1"]
[White "Nasrin_Babayeva"]
[Black "Leebit02"]
[Result "0-1"]
[WhiteElo "1825"]
[BlackElo "2550"]
[TimeControl "180+1"]
[EndTime "8:04:38 PST"]
[Termination "Leebit02 won by resignation"]

1. c4 {[%clk 0:03:00.9]} 1... e6 {[%clk 0:02:57.8]} 2. g3 {[%clk 0:03:00.4]}
2... d5 {[%clk 0:02:57.2]} 3. Bg2 {[%clk 0:02:56.6]} 3... Nf6 {[%clk 0:02:57.4]}
4. Nf3 {[%clk 0:02:57.1]} 4... d4 {[%clk 0:02:57.3]} 5. e3 {[%clk 0:02:55.9]}
5... c5 {[%clk 0:02:57.6]} 6. exd4 {[%clk 0:02:53.7]} 6... cxd4 {[%clk
0:02:57.4]} 7. O-O {[%clk 0:02:54.4]} 7... Nc6 {[%clk 0:02:57.5]} 8. Re1 {[%clk
0:02:55]} 8... Bd6 {[%clk 0:02:49]} 9. b3 {[%clk 0:02:51.3]} 9... O-O {[%clk
0:02:48.3]} 10. Bb2 {[%clk 0:02:43.4]} 10... e5 {[%clk 0:02:48.5]} 11. d3 {[%clk
0:02:38.5]} 11... Re8 {[%clk 0:02:45.6]} 12. Nbd2 {[%clk 0:02:36.7]} 12... Bf5
{[%clk 0:02:44.9]} 13. Nf1 {[%clk 0:02:13.8]} 13... h6 {[%clk 0:02:33.6]} 14. a3
{[%clk 0:02:11.2]} 14... a5 {[%clk 0:02:33.2]} 15. Rc1 {[%clk 0:02:04]} 15...
Bc5 {[%clk 0:02:19.5]} 16. Nh4 {[%clk 0:01:52.1]} 16... Bh7 {[%clk 0:02:19.3]}
17. Bxc6 {[%clk 0:01:51.4]} 17... bxc6 {[%clk 0:02:19.2]} 18. Nf3 {[%clk
0:01:47.4]} 18... Qd6 {[%clk 0:02:19]} 19. Ra1 {[%clk 0:01:38.6]} 19... Rad8
{[%clk 0:02:01.7]} 20. Rb1 {[%clk 0:01:12.3]} 20... e4 {[%clk 0:01:53.7]} 21.
dxe4 {[%clk 0:01:08.8]} 21... Nxe4 {[%clk 0:01:45.7]} 22. Ra1 {[%clk 0:01:04.8]}
22... d3 {[%clk 0:01:41.3]} 23. N1d2 {[%clk 0:00:48.8]} 0-1

[Event "Early-Titled-Tuesday-Blitz-January-16-2024"]
[Site "Chess.com"]
[Date "2024.01.16"]
[Round "1"]
[White "MikaelyanArman"]
[Black "GMFYHR1"]
[Result "1-0"]
[WhiteElo "2856"]
[BlackElo "2460"]
[TimeControl "180+1"]
[EndTime "8:04:46 PST"]
[Termination "MikaelyanArman won by resignation"]

1. d4 {[%clk 0:02:59.8]} 1... d5 {[%clk 0:02:59.7]} 2. c4 {[%clk 0:02:59]} 2...
c6 {[%clk 0:02:59.8]} 3. Nf3 {[%clk 0:02:58.4]} 3... Nf6 {[%clk 0:02:59.7]} 4.
e3 {[%clk 0:02:59.1]} 4... Bf5 {[%clk 0:02:57.9]} 5. Nc3 {[%clk 0:02:57.1]} 5...
e6 {[%clk 0:02:57.9]} 6. Nh4 {[%clk 0:02:54.3]} 6... Be4 {[%clk 0:02:55.5]} 7.
f3 {[%clk 0:02:51.9]} 7... Bg6 {[%clk 0:02:55.8]} 8. Bd2 {[%clk 0:02:50.5]} 8...
Bd6 {[%clk 0:02:55.4]} 9. Qb3 {[%clk 0:02:44.4]} 9... Qc7 {[%clk 0:02:55.3]} 10.
O-O-O {[%clk 0:02:38.6]} 10... Nbd7 {[%clk 0:02:55]} 11. Nxg6 {[%clk 0:02:22]}
11... hxg6 {[%clk 0:02:55]} 12. g4 {[%clk 0:02:19.6]} 12... Rxh2 {[%clk
0:02:22.8]} 13. Rxh2 {[%clk 0:02:18.3]} 13... Bxh2 {[%clk 0:02:22.4]} 14. g5
{[%clk 0:02:15.8]} 14... Nh5 {[%clk 0:02:22.4]} 15. f4 {[%clk 0:02:11.9]} 15...
f6 {[%clk 0:02:11.9]} 16. Bd3 {[%clk 0:02:05.8]} 16... Nf8 {[%clk 0:02:00.8]}
17. gxf6 {[%clk 0:01:51.1]} 17... gxf6 {[%clk 0:01:57.9]} 18. Rh1 {[%clk
0:01:49.5]} 18... Bg3 {[%clk 0:01:58.1]} 19. Ne2 {[%clk 0:01:49.1]} 19... e5
{[%clk 0:01:32.7]} 20. cxd5 {[%clk 0:01:34]} 20... cxd5+ {[%clk 0:01:29.1]} 21.
Kb1 {[%clk 0:01:32.4]} 21... Kd8 {[%clk 0:01:21.2]} 22. Qxd5+ {[%clk 0:01:30.2]}
22... Qd7 {[%clk 0:01:08.6]} 23. Ba5+ {[%clk 0:01:21.5]} 23... Ke7 {[%clk
0:01:05.5]} 24. Bb4+ {[%clk 0:01:19.2]} 24... Ke8 {[%clk 0:01:06]} 25. Bb5
{[%clk 0:01:18.6]} 1-0

[Event "Early-Titled-Tuesday-Blitz-January-16-2024"]
[Site "Chess.com"]
[Date "2024.01.16"]
[Round "1"]
[White "Zhigalko_Sergei"]
[Black "tomesao"]
[Result "1-0"]
[WhiteElo "2949"]
[BlackElo "2507"]
[TimeControl "180+1"]
[EndTime "8:04:49 PST"]
[Termination "Zhigalko_Sergei won by resignation"]

1. e4 {[%clk 0:03:00.9]} 1... c6 {[%clk 0:02:59.9]} 2. d4 {[%clk 0:03:00.7]}
2... d5 {[%clk 0:03:00.8]} 3. e5 {[%clk 0:03:01]} 3... Bf5 {[%clk 0:03:00.5]} 4.
Nf3 {[%clk 0:03:01.6]} 4... e6 {[%clk 0:02:59.6]} 5. Be2 {[%clk 0:03:02.1]} 5...
c5 {[%clk 0:02:59.7]} 6. Be3 {[%clk 0:03:02]} 6... Qb6 {[%clk 0:02:59.2]} 7. Nc3
{[%clk 0:03:01.8]} 7... Nc6 {[%clk 0:02:58.5]} 8. dxc5 {[%clk 0:03:01.5]} 8...
Bxc5 {[%clk 0:02:57.6]} 9. Bxc5 {[%clk 0:03:02.4]} 9... Qxc5 {[%clk 0:02:57.7]}
10. Nb5 {[%clk 0:03:03.3]} 10... Nge7 {[%clk 0:02:42.8]} 11. Nc7+ {[%clk
0:03:01.8]} 11... Kd7 {[%clk 0:02:40.6]} 12. Nxa8 {[%clk 0:03:02.7]} 12... Rxa8
{[%clk 0:02:40.2]} 13. c3 {[%clk 0:02:45.4]} 13... h6 {[%clk 0:02:24.3]} 14. O-O
{[%clk 0:02:44]} 14... g5 {[%clk 0:02:23.3]} 15. Qa4 {[%clk 0:02:24.5]} 15... a6
{[%clk 0:02:15.2]} 16. Nd4 {[%clk 0:02:20.6]} 16... Rg8 {[%clk 0:01:58.4]} 17.
Rad1 {[%clk 0:02:11.6]} 17... g4 {[%clk 0:01:46.4]} 18. Nxf5 {[%clk 0:02:03.3]}
18... Nxf5 {[%clk 0:01:46.1]} 19. Bxg4 {[%clk 0:01:55.6]} 19... Nh4 {[%clk
0:01:13.2]} 20. Bxe6+ {[%clk 0:01:44.9]} 20... fxe6 {[%clk 0:01:14.1]} 21. Qxh4
{[%clk 0:01:44.6]} 21... Nxe5 {[%clk 0:01:14.3]} 22. Kh1 {[%clk 0:01:37.3]}
22... Qb5 {[%clk 0:01:03.2]} 23. b3 {[%clk 0:01:32.8]} 23... Qa5 {[%clk
0:00:51.6]} 24. c4 {[%clk 0:01:30.1]} 1-0

[Event "Early-Titled-Tuesday-Blitz-January-16-2024"]
[Site "Chess.com"]
[Date "2024.01.16"]
[Round "1"]
[White "luckyswitchback"]
[Black "Garbaranza"]
[Result "0-1"]
[WhiteElo "2723"]
[BlackElo "2418"]
[TimeControl "180+1"]
[EndTime "8:04:51 PST"]
[Termination "Garbaranza won by resignation"]

1. e4 {[%clk 0:03:00.9]} 1... e5 {[%clk 0:02:58.9]} 2. Nf3 {[%clk 0:03:00.9]}
2... Nc6 {[%clk 0:02:59.4]} 3. Bb5 {[%clk 0:03:00.6]} 3... f5 {[%clk 0:02:59.3]}
4. exf5 {[%clk 0:02:57.9]} 4... e4 {[%clk 0:02:58.4]} 5. Qe2 {[%clk 0:02:53.8]}
5... Qe7 {[%clk 0:02:58.2]} 6. Bxc6 {[%clk 0:02:51.1]} 6... dxc6 {[%clk
0:02:58.5]} 7. Nd4 {[%clk 0:02:51.2]} 7... Nh6 {[%clk 0:02:58.8]} 8. Nc3 {[%clk
0:02:45.4]} 8... Nxf5 {[%clk 0:02:56.8]} 9. Nxf5 {[%clk 0:02:44.5]} 9... Bxf5
{[%clk 0:02:56.9]} 10. O-O {[%clk 0:02:44.6]} 10... O-O-O {[%clk 0:02:54.7]} 11.
Re1 {[%clk 0:02:44.3]} 11... Re8 {[%clk 0:02:49.3]} 12. b3 {[%clk 0:02:37.6]}
12... Qe5 {[%clk 0:02:29.2]} 13. Bb2 {[%clk 0:02:35.6]} 13... Bd6 {[%clk
0:02:29.2]} 14. g3 {[%clk 0:02:33.7]} 14... Qe6 {[%clk 0:02:28.3]} 15. Qc4
{[%clk 0:02:26.5]} 15... Qg6 {[%clk 0:02:21.9]} 16. Ne2 {[%clk 0:02:14.1]} 16...
h5 {[%clk 0:02:16.8]} 17. Qd4 {[%clk 0:02:06.2]} 17... h4 {[%clk 0:01:59]} 18.
Qxg7 {[%clk 0:01:38.1]} 18... Qh5 {[%clk 0:01:57.2]} 19. Qxh8 {[%clk 0:00:54.8]}
19... Rxh8 {[%clk 0:01:55.6]} 20. Bxh8 {[%clk 0:00:55.7]} 20... Qxh8 {[%clk
0:01:55.1]} 21. Nc3 {[%clk 0:00:56]} 21... hxg3 {[%clk 0:01:44.6]} 22. fxg3
{[%clk 0:00:55.8]} 22... Bc5+ {[%clk 0:01:36]} 23. Kg2 {[%clk 0:00:54.4]} 23...
Qh3+ {[%clk 0:01:30.2]} 24. Kh1 {[%clk 0:00:54.5]} 24... Bg4 {[%clk 0:01:29.4]}
0-1

[Event "Early-Titled-Tuesday-Blitz-January-16-2024"]
[Site "Chess.com"]
[Date "2024.01.16"]
[Round "1"]
[White "UNSTOPPABLE_LEGEND"]
[Black "artooon"]
[Result "0-1"]
[WhiteElo "2510"]
[BlackElo "2963"]
[TimeControl "180+1"]
[EndTime "8:05:01 PST"]
[Termination "artooon won by resignation"]

1. Nf3 {[%clk 0:03:00.9]} 1... Nf6 {[%clk 0:02:59.7]} 2. c4 {[%clk 0:03:00.7]}
2... c5 {[%clk 0:02:59.2]} 3. Nc3 {[%clk 0:03:00.5]} 3... Nc6 {[%clk 0:02:59.7]}
4. g3 {[%clk 0:03:00.3]} 4... g6 {[%clk 0:03:00]} 5. d4 {[%clk 0:02:58.7]} 5...
cxd4 {[%clk 0:02:59.9]} 6. Nxd4 {[%clk 0:02:59.6]} 6... Bg7 {[%clk 0:02:59.9]}
7. Bg2 {[%clk 0:03:00]} 7... O-O {[%clk 0:03:00.5]} 8. O-O {[%clk 0:03:00.6]}
8... Nxd4 {[%clk 0:02:54]} 9. Qxd4 {[%clk 0:03:00.3]} 9... d6 {[%clk 0:02:54.7]}
10. Qd3 {[%clk 0:03:00.6]} 10... Bf5 {[%clk 0:02:52.6]} 11. e4 {[%clk
0:02:59.4]} 11... Be6 {[%clk 0:02:52.3]} 12. b3 {[%clk 0:02:52.7]} 12... a5
{[%clk 0:02:48.2]} 13. Bb2 {[%clk 0:02:51.8]} 13... Nd7 {[%clk 0:02:48.5]} 14.
Kh1 {[%clk 0:02:37.9]} 14... Nc5 {[%clk 0:02:47]} 15. Qd2 {[%clk 0:02:35.1]}
15... a4 {[%clk 0:02:47.1]} 16. b4 {[%clk 0:02:27]} 16... a3 {[%clk 0:02:45.1]}
17. bxc5 {[%clk 0:02:16.1]} 17... axb2 {[%clk 0:02:38.4]} 18. Qxb2 {[%clk
0:02:17]} 18... dxc5 {[%clk 0:02:33.5]} 19. Qb3 {[%clk 0:02:14.3]} 19... Qd3
{[%clk 0:02:30.6]} 20. Rfc1 {[%clk 0:02:10.6]} 20... Bxc4 {[%clk 0:02:30.4]} 21.
Qb2 {[%clk 0:02:06.1]} 21... b5 {[%clk 0:02:29.4]} 22. Kg1 {[%clk 0:02:04.2]}
22... b4 {[%clk 0:02:24.3]} 23. Bf1 {[%clk 0:01:52.8]} 23... bxc3 {[%clk
0:02:22.6]} 24. Qb7 {[%clk 0:01:38.8]} 24... Ba6 {[%clk 0:02:04.5]} 25. Qxe7
{[%clk 0:01:14.1]} 25... Qd8 {[%clk 0:01:58.9]} 26. Qxc5 {[%clk 0:01:12.1]}
26... Bxf1 {[%clk 0:01:55.3]} 27. Rxf1 {[%clk 0:01:13]} 27... Qd3 {[%clk
0:01:55]} 28. Rfe1 {[%clk 0:01:09.2]} 28... Rfc8 {[%clk 0:01:53.5]} 29. Qb4
{[%clk 0:01:05.5]} 29... c2 {[%clk 0:01:52.9]} 30. Rac1 {[%clk 0:01:05.8]} 30...
Bc3 {[%clk 0:01:53.1]} 31. Qb3 {[%clk 0:01:06.3]} 31... Rab8 {[%clk 0:01:50.8]}
32. Qa3 {[%clk 0:01:06.2]} 32... Qd4 {[%clk 0:01:46.3]} 0-1